Cogmind - Beta 10.2 *** ADVENTURER MODE // 2021.10.11 @ 02:11:11 Player: Apothem Result: Destroyed by S-10 Pest with Light Assault Rifle Performance ------------- Evolutions (1) 500 Regions Visited (3) 600 Robots Destroyed (28) 140 Value Destroyed (561) 561 Prototype IDs (2) 40 Alien Tech Used (0) 0 Bonus (0) 0 TOTAL SCORE: 1841 Bonus ------- None Cogmind --------- Core Integrity 0/400 Matter 265/300 Energy 82/125 System Corruption 4% Temperature Cool (0) Movement Hovering (180) Ox2 Location -9/Materials Parts ------- > --- POWER (1) -------- Light Ion Engine > --- PROPULSION (2) --- Improved Hover Unit > --- UTILITY (4) ------ Large Storage Unit Signal Interpreter > --- WEAPON (2) ------- Grenade Launcher > --- INVENTORY (10) --- Large Storage Unit High-capacity Matter Pod (200) Improved Sensor Array Rocket Launcher Mini Grenade Launcher Peak State ------------ > --- POWER ------------ Improved Ion Engine > --- PROPULSION ------- Light Treads Light Treads > --- UTILITY ---------- Improved Heat Sink Large Storage Unit Signal Interpreter Improved Light Armor Plating > --- WEAPON ----------- Beam Cannon Mining Claw > --- INVENTORY -------- Improved Hover Unit Improved Hover Unit Large Storage Unit High-capacity Matter Pod Improved Sensor Array Beam Cannon Grenade Launcher Rocket Launcher Mini Grenade Launcher [Rating: 15] Favorites ----------- Power Ion Engine Engine Ion Engine Propulsion Light Treads Treads Light Treads Hover Unit Improved Hover Unit Utility Large Storage Unit Device Improved Terrain Scanner Storage Large Storage Unit Processor Signal Interpreter Protection Weapon Shielding Weapon Mining Claw Energy Gun Medium Laser Energy Cannon Beam Cannon Ballistic Gun Light Assault Rifle Launcher Grenade Launcher Slashing Weapon Mining Claw Build | -11 -10 -10 -9 ------- Run | Scr Mat Min Mat Slots Evolved 2 | . . . 2 Power . | . . . . Propulsion . | . . . . Utility 2 | . . . 2 Weapon . | . . . . Parts Attached 30 | 6 3 1 20 Power 3 | 1 . . 2 Engine 3 | 1 . . 2 Core . | . . . . Reactor . | . . . . Propulsion 12 | 2 . . 10 Treads 8 | 2 . . 6 Leg . | . . . . Wheel . | . . . . Hover 4 | . . . 4 Flight . | . . . . Utility 7 | 1 2 . 4 Device 2 | . . . 2 Storage 2 | 1 1 . . Processor 1 | . . . 1 Hackware . | . . . . Protection 2 | . 1 . 1 Artifact . | . . . . Weapon 8 | 2 1 1 4 Energy Gun 1 | 1 . . . Energy Cannon 3 | . . . 3 Ballistic Gun 2 | 1 . 1 . Ballistic Cannon . | . . . . Launcher 1 | . . . 1 Special Weapon . | . . . . Impact Weapon . | . . . . Slashing Weapon 1 | . 1 . . Piercing Weapon . | . . . . Special Melee Weapon . | . . . . Unidentified Prototypes . | . . . . Parts Lost 17 | . . 1 16 Power 2 | . . . 2 Propulsion 6 | . . . 6 Utility 4 | . . . 4 Weapon 5 | . . 1 4 Highest Loss Streak 10 | . . 1 10 Average Slot Usage (%) 89 | . 96 98 85 Engine 7 | . 14 14 3 Treads 22 | . 28 28 18 Device 5 | . . . 8 Storage 12 | . 14 14 11 Processor 6 | . . . 11 Protection 10 | . 10 14 10 Energy Gun 4 | . 14 5 . Energy Cannon 5 | . . . 8 Ballistic Gun 1 | . 3 7 . Slashing Weapon 11 | . 10 14 10 Naked Turns . | . . . . Heaviest Build 30 | 12 26 26 30 Greatest Support 40 | 40 40 40 40 Greatest Overweight (x) 7 | 2 . . 7 Average Overweight (x) . | . . . . Largest Inventory Capacity 12 | 6 12 10 10 Average Capacity 8 | 5 9 10 10 Most Carried 10 | 6 10 10 10 Average Carried 7 | 3 7 9 9 Final Capacity 10 | 6 10 10 10 Final Carried 10 | 4 10 10 5 Class Distribution -------------------- 94% | Mutant 5% | Scavenger-Mutant Dominant Class ---------------- Mutant | -10/Materials Mutant | -10/Mines Mutant | -9/Materials Resources | -11 -10 -10 -9 ----------- Run | Scr Mat Min Mat Matter Collected 631 | 215 75 11 330 Remotely . | . . . . Salvage Created 1028 | . 110 199 719 Parts 68 | . 12 10 46 Haulers Intercepted 1 | . 1 . . Recyclers Shooed 1 | . 1 . . Parts Field Recycled . | . . . . Retrieved Matter . | . . . . Parts Self-Destructed . | . . . . Prevented . | . . . . Kills | -11 -10 -10 -9 ------- Run | Scr Mat Min Mat Combat Hostiles Destroyed 22 | . 1 5 16 Melee 18 | . 1 5 12 Cannons 3 | . . . 3 AOE 1 | . . . 1 Classes Destroyed 7 | . 3 2 2 Hauler 1 | . 1 . . Recycler 4 | . . 1 3 Watcher 1 | . 1 . . Swarmer 12 | . . 3 9 Grunt 5 | . 1 2 2 Brawler 1 | . . . 1 Sentry 4 | . . . 4 Best Kill Streak 4 | . 1 3 4 Combat Bots Only 4 | . 1 3 4 Max Kills in Single Turn 1 | . 1 1 1 Gunslinging . | . . . . Exploded 1 | . . . 1 Melee 1 | . 1 1 1 Uniques/NPCs Destroyed . | . . . . Combat | -11 -10 -10 -9 -------- Run | Scr Mat Min Mat Damage Taken 2112 | . 17 411 1684 Core 475 | . 8 67 400 Absorbed by Shields . | . . . . Core Remaining (%) 85 | 100 . 70 . Volleys Fired 29 | . 10 2 17 Largest 1 | . 1 1 1 Hottest 60 | . 50 50 60 Shots Fired 29 | . 10 2 17 Gun 12 | . 10 2 . Cannon 16 | . . . 16 Launcher 1 | . . . 1 Special . | . . . . Kinetic 1 | . . 1 . Thermal 27 | . 10 1 16 Explosive 1 | . . . 1 Electromagnetic . | . . . . Robot Hit Streak 12 | . 5 3 12 Robot Miss Streak 1 | . 1 . 1 Penetration Max . | . . . . Secondary Targets . | . . . . Shots Hit Robots 73 | . 9 15 49 Core Hits 32 | . 4 8 20 Critical Hits . | . . . . Critical Kills . | . . . . Critical Parts Destroyed . | . . . . Melee Attacks 59 | . 1 14 44 Impact . | . . . . Slashing 59 | . 1 14 44 Piercing . | . . . . Sneak Attacks 3 | . . 1 2 Combat Hostiles . | . . . . Follow-up Attacks . | . . . . Damage Inflicted 1624 | . 124 345 1155 Guns 119 | . 100 19 . Cannons 264 | . . . 264 Explosions 60 | . . . 60 Melee 1181 | . 24 326 831 Ramming . | . . . . Kinetic 6 | . . 6 . Thermal 377 | . 100 13 264 Explosive 60 | . . . 60 Electromagnetic . | . . . . Impact . | . . . . Slashing 1181 | . 24 326 831 Piercing . | . . . . Highest Corruption 4 | . . . 4 Average Corruption 4 | . . . 4 Corruption Purged . | . . . . Effects 6 | . . . 6 Message Errors 1 | . . . 1 Matter Fused 2 | . . . 2 Heat Flow Errors 1 | . . . 1 Energy Discharges 1 | . . . 1 Targeting Errors 1 | . . . 1 Overload Shots . | . . . . Overflow Damage 29 | . . . 29 Projectiles . | . . . . Explosions . | . . . . Melee 29 | . . . 29 Knockbacks . | . . . . Impact . | . . . . Kinetic . | . . . . Secondary . | . . . . Self-Inflicted Damage 30 | . . . 30 Shots 1 | . . . 1 Rammed . | . . . . Targets Rammed . | . . . . Kicked . | . . . . Crushed . | . . . . Highest Temperature 127 | . 30 25 127 Average Temperature 16 | . 13 17 18 Received Heat Transfer 540 | . 12 225 303 Siege Activations . | . . . . Robots Corrupted . | . . . . Combat Hostiles . | . . . . Parts Fried . | . . . . Impact Corruptions . | . . . . Robots Melted . | . . . . Combat Hostiles . | . . . . Parts Melted . | . . . . Heat Transferred 888 | . 296 37 555 Parts Sabotaged . | . . . . Parts Stolen . | . . . . Parts Stripped . | . . . . Power Chain Reactions . | . . . . Missiles Intercepted . | . . . . Alert | -11 -10 -10 -9 ------- Run | Scr Mat Min Mat Peak Influence 362 | . 40 128 362 Initial 42 | . . 13 42 Average 70 | . 13 59 138 Maximum Alert Level 1 | . . . 1 Low Security (%) 84 | 100 100 100 66 Level 1 15 | . . . 33 Level 2 . | . . . . Level 3 . | . . . . Level 4 . | . . . . Level 5 . | . . . . High Security . | . . . . Max Security . | . . . . Squads Dispatched 3 | . . . 3 Investigation . | . . . . Extermination . | . . . . Reinforcement 3 | . . . 3 Assault . | . . . . Garrison . | . . . . Intercept . | . . . . Construction Impeded . | . . . . Haulers Reinforced . | . . . . Stealth | -11 -10 -10 -9 --------- Run | Scr Mat Min Mat Distress Signals 4 | . . . 4 Communications Jammed . | . . . . Distress Signals . | . . . . Times Spotted 48 | . 3 5 40 Peak Tracking Total 9 | . 1 3 9 Tactical Retreats 6 | . . . 6 Traps | -11 -10 -10 -9 ------- Run | Scr Mat Min Mat Traps Triggered . | . . . . Indirectly . | . . . . Trap Hack Attempts . | . . . . Triggered . | . . . . Disarmed . | . . . . Reprogrammed . | . . . . Reused . | . . . . Traps Extracted . | . . . . Installed . | . . . . Triggered . | . . . . Machines | -11 -10 -10 -9 ---------- Run | Scr Mat Min Mat Machines Disabled . | . . . . Max in Single Turn . | . . . . Machines Sabotaged . | . . . . Garrisons Compromised . | . . . . Overloaded Fab Kills . | . . . . Fab Network Shutdowns . | . . . . Hacking | -11 -10 -10 -9 --------- Run | Scr Mat Min Mat Machines Accessed 5 | . 3 . 2 Terminals 4 | . 2 . 2 Fabricators . | . . . . Repair Stations . | . . . . Recycling Units 1 | . 1 . . Scanalyzers . | . . . . Garrison Access . | . . . . Total Hacks 10 | . 6 . 4 Successful 6 | . 5 . 1 Failed 4 | . 1 . 3 Catastrophic . | . . . . Database Lockouts . | . . . . Manual . | . . . . Terminals 9 | . 5 . 4 Fabricators . | . . . . Repair Stations . | . . . . Recycling Units 1 | . 1 . . Scanalyzers . | . . . . Garrison Access . | . . . . Terminal Hacks 5 | . 4 . 1 Prototype ID Bank 1 | . 1 . . Branch Access Points 1 | . . . 1 Unreport Threat 2 | . 2 . . Transport Status 1 | . 1 . . Fabricator Hacks . | . . . . Repair Station Hacks . | . . . . Recycling Unit Hacks 1 | . 1 . . Report Inventory 1 | . 1 . . Scanalyzer . | . . . . Garrison Access Hacks . | . . . . Unauthorized Hacks . | . . . . Terminals . | . . . . Fabricators . | . . . . Repair Stations . | . . . . Recycling Units . | . . . . Scanalyzers . | . . . . Garrison Access . | . . . . Data Cores Recovered . | . . . . Used . | . . . . Hacking Detections 4 | . 2 . 2 Full Trace Events . | . . . . Feedback Events . | . . . . Feedback Blocked . | . . . . Robot Schematics Acquired . | . . . . Robots Built . | . . . . Matter . | . . . . Time . | . . . . Total Robot Build Rating . | . . . . Part Schematics Acquired . | . . . . Parts Built . | . . . . Matter . | . . . . Time . | . . . . Total Part Build Rating . | . . . . Parts Repaired . | . . . . Time . | . . . . Parts Recycled . | . . . . Recycled Matter . | . . . . Retrieved Matter . | . . . . Retrieved Components . | . . . . Parts Scanalyzed . | . . . . Part Schematics Acquired . | . . . . Parts Damaged . | . . . . Bothacking | -11 -10 -10 -9 ------------ Run | Scr Mat Min Mat Used RIF Installer . | . . . . Robots Hacked . | . . . . Non-combat . | . . . . Combat . | . . . . Robot Hacks Applied . | . . . . Relay Couplers Released . | . . . . Robots Rewired . | . . . . Allies Hacked . | . . . . Hacks Repelled . | . . . . Allies | -11 -10 -10 -9 -------- Run | Scr Mat Min Mat Total Allies . | . . . . Largest Group . | . . . . Highest-Rated Group . | . . . . Highest-Rated Ally . | . . . . Total Orders . | . . . . Ally Attacks . | . . . . Total Damage . | . . . . Kills . | . . . . Allies Corrupted . | . . . . Allies Melted . | . . . . Intel | -11 -10 -10 -9 ------- Run | Scr Mat Min Mat Robot Analysis Total . | . . . . Derelict Logs Recovered . | . . . . Drone Launches . | . . . . Drone Recoveries . | . . . . Exploration | -11 -10 -10 -9 ------------- Run | Scr Mat Min Mat Turns Passed 1823 | 492 381 106 844 Spaces Moved 715 | 83 213 36 383 Core 31 | 26 . . 5 Treads 666 | 57 213 36 360 Legs . | . . . . Wheels . | . . . . Hover 18 | . . . 18 Flight . | . . . . Fastest Speed 50 | 50 160 160 116 Average Speed 158 | 140 160 160 161 Slowest Speed 400 | 160 160 160 400 Overloaded Moves . | . . . . Propulsion Burnouts . | . . . . Robots Hopped . | . . . . Cave-ins Triggered . | . . . . Exploration Rate (%) 18 | 8 25 10 30 Regions Visited 3 Branch Regions 1 Pre-discovered Areas . | . . . . Known Exits Taken . | . . . . Unknown Exits Taken 3 | 1 1 1 . Scrap Searched . | . . . . Spaces Dug . | . . . . Terrain Destroyed 10 | . . . 10 Melee . | . . . . Projectile . | . . . . AOE 10 | . . . 10 Terrain Rammed . | . . . . Walls Destroyed . | . . . . Machines Disabled . | . . . . Actions | -11 -10 -10 -9 --------- Run | Scr Mat Min Mat Total 1258 | 458 243 55 502 Wait 380 | 361 . . 19 Move 712 | 82 212 35 383 Hop . | . . . . Pick Up 32 | 9 12 2 9 Fast Attach 10 | 1 . . 9 Attach 18 | 5 2 1 10 Detach . | . . . . Swap 2 | . 1 . 1 Drop 16 | . 5 1 10 Fire 29 | . 10 2 17 Melee 59 | . 1 14 44 Ram . | . . . . Kick . | . . . . Crush . | . . . . Escape Stasis . | . . . . Rewire . | . . . . Trap . | . . . . Miscellaneous . | . . . . Route ------- -11/Scrapyard -10/Materials -10/Mines -9/Materials (discovered 2 exits: *Min / Sto) History --------- Turn | Location | Event 14 | -11/Scrapyard | Discovered new exit (range 15) 493 | -11/Scrapyard | Entered Materials 494 | -10/Materials | Build established: Mutant 803 | -10/Materials | Discovered new exit (range 13) 874 | -10/Materials | Entered Mines 903 | -10/Mines | Discovered new exit (range 15) 979 | -10/Mines | Assembled infested the area 980 | -10/Mines | Entered Materials 980 | -9/Materials | Evolved 2 slots: Utility x2 1358 | -9/Materials | Identified exit to Mines 1358 | -9/Materials | Identified exit to Storage 1766 | -9/Materials | Core integrity fell below 50% 1809 | -9/Materials | Core integrity fell below 20% 1824 | -9/Materials | Destroyed by S-10 Pest with Light Assault Rifle Last Messages --------------- 01741_ S-10 Pest destroyed. 01746_ Beam Cannon destroyed. 01749_ Imp. Ion Engine destroyed. 01753_ Y-45 Defender Beam Rifle severed. 01756_ Imp. Heat Sink destroyed. 01761_ System corrupted: Beam Cannon targeting data glitched. 01768_ K-01 Serf collects debris. 01769_ Lgt. Treads destroyed. 01773_ BZ7> U0,X/6MIK4&W4HZDD1DHLILGQI%PIUB,YM 01780_ Beam Cannon destroyed. 01787_ Lgt. Treads destroyed. 01800_ Imp. Light Armor Plating destroyed. 01806_ System corrupted: Heat flow error (+152). 01807_ Destroyed Flight Unit. 01810_ S-10 Pest destroyed. 01814_ Mining Claw destroyed. 01816_ Imp. Hover Unit destroyed. 01817_ S-10 Pest destroyed. 01819_ Acquired 5 matter. 01822_ Acquired Lgt. Ion Engine. Map ----- +----------------------------------------------------+ | ???????????????????????# """ # #?????"???#####+ | | ???????????????????????# ""??# #?????????#???# | | ???????????????????????# ????# #??????????#??# | | ??????????????????????????????# #???? ????????#+ | | ??????????????????????????????# #????#?????????? | | ?????????????????????????#????# #??????###?????? | | ??????????????????????? """"??# = #???? ?????? | | ?????????????????????"" ""T""?#!% #?? """ ??????? | | ?????????????????????"" # # """ ??????# | | ?????????????????????"" = + + """ ??????? | | ?????????????????? # # ??? | | ?????????????????????########## ##?######+###??? | | ??????????????################ ######## ###### | | ????????????? | | ????????????? = T | | ????????????? [*= | | ????????????????#+#########+## ########+###### | | ?????????????????????# % =%####/####?# #? | | ?????????????????????# u="""#? ??? ???# #? | | ?????????????????????# s"""#?????????# #? | | ????????????????????## """#???? ? ??# #? | | ????????????????????# s #?????????# ## | | ????????????????????## #?????????# ## | | ?????????????????????#### #??????? #* #? | | ???????????????# ##### Y #? ????? #=! ## | | ???????????????# + @ #? ???????#/#########? | | ????????????????####### = #????##?###=# == #? | | ??????????????????????#######??#??????# # =[ #? | | ?????????????????????????????#??#???#?#=# #? | | ???????????????????????#??#???????????#*# #? | | ??????????????????????????#????#???#??#!####+##### | | ??????????????????????????????????????#=#??# #???? | | ?????????????????????????????????#????# #??# ##### | | ????????????????????????????????????### #?## ## !! | | ??????????????????????????????????????# #?## [ | | ?????????????????????????????#??????### ##?# [! | | ??????????????????????????????#??????# ### ### | | ?????????????????????????????????????#%=[ | | ????????????????????????????#????????#=%*## # | | ??????????????????????????????##?#???###### ! # | | ????????????????????????????#??#?????#???##==! !!# | | ???????????????????????????????????##?????#==!!!!# | | ?????????????????????????????????????##??######### | | ?????????????????????????????????????#????????#??? | | | | | | | | | | | | | +----------------------------------------------------+ Best States ------------- Heat Dissipation 42 Energy Generation 12 Energy Capacity 265 Matter Stores 300 Matter Capacity 300 Sight Range 16 Terrain Scan Range 16 Terrain Scan Density 10 Armor Coverage 150 Resistance: KI 20 Resistance: TH 20 Resistance: EX 20 Resistance: EM 20 Resistance: I 20 Resistance: S 20 Resistance: P 20 Weapon Shielding 33 Evasion (%) 40 Recoil Reduction 2 Offensive Hacking 10 Item Schematics ----------------- None Robot Schematics ------------------ None Fabricated ------------ Nothing Alien Tech Used ----------------- None Achievements -------------- None Challenges ------------ None Game ------ Seed NeutrinoSiegeAmplifier Manual? 0 Play Time 00:13:19 Cumulative 121.5 hours Start 2021.10.11 @ 01:56:43 End 2021.10.11 @ 02:11:11 Sessions 1 Manual Loads 0 Difficulty Adventurer Special Mode None Game No. 84 Rogue 0 Adventurer 84 Explorer 0 Win Type - Total 0 Types 0/0/0/0/0/0/0/0/0 Lore% 40 Gallery% 59 Achievement% 39 Wizard Run 0 Options --------- ASCII 0 Keyboard 0 Movement Mouse Keybinds 0 Fullscreen 2 Font 18/SmallcapsGlow Map View 76x50 Tactical HUD 1 Map Filters NONE Filters NONE Steam 1 RUN: 4fcc05d4-41f7-439b-9991-bbbdd2d31522